[Event "FIDE World Cup 2013"]
[Site "TromsÃ¸"]
[Date "2013.08.13"]
[Round "1.3"]
[White "Fier, Alexandr"]
[Black "Wojtaszek, Radoslaw"]
[Result "1-0"]
[ECO "A45"]
[WhiteElo "2595"]
[BlackElo "2701"]
[PlyCount "53"]
[EventDate "2013.??.??"]
[EventCountry "NOR"]
[TimeControl "1500+10"]

1. d4 {[%emt 0:00:00]} Nf6 {[%emt 0:00:00]} 2. Bg5 {[%emt 0:00:00]} d5 {[%emt
0:00:00]} 3. Nd2 {[%emt 0:00:00]} c6 {[%emt 0:00:50]} 4. e3 {[%emt 0:00:16]}
Qb6 {[%emt 0:00:11]} 5. Rb1 {[%emt 0:00:28]} Bf5 {[%emt 0:00:04]} 6. Bxf6 {
[%emt 0:00:47]} gxf6 {[%emt 0:01:08]} 7. Bd3 {[%emt 0:00:19]} Bxd3 {[%emt 0:00:
12]} 8. cxd3 {[%emt 0:00:01]} e6 {[%emt 0:00:19]} 9. Ne2 {[%emt 0:00:16]} Nd7 {
[%emt 0:00:29]} 10. O-O {[%emt 0:00:04]} Bd6 {[%emt 0:00:47]} 11. b4 {[%emt 0:
00:13]} a5 {[%emt 0:01:43]} 12. bxa5 {[%emt 0:00:11]} Qc7 {[%emt 0:00:01]} 13.
f4 {[%emt 0:01:30]} Rxa5 {[%emt 0:00:09]} 14. Rb2 {[%emt 0:00:38]} f5 {[%emt 0:
02:41]} 15. e4 {[%emt 0:01:08]} fxe4 {[%emt 0:01:29]} 16. dxe4 {[%emt 0:00:01]}
dxe4 {[%emt 0:00:29]} 17. Nxe4 {[%emt 0:00:05]} Be7 {[%emt 0:00:14]} 18. N2g3 {
[%emt 0:00:16]} h5 {[%emt 0:00:22]} 19. f5 {[%emt 0:00:27]} e5 {[%emt 0:03:28]}
20. f6 {[%emt 0:01:02]} Ba3 {[%emt 0:00:46]} 21. Rb3 {[%emt 0:00:17]} exd4 {
[%emt 0:03:12]} 22. Qe1 {[%emt 0:00:58]} Kd8 {[%emt 0:00:23]} 23. Rxb7 {[%emt
0:00:06]} Qe5 {[%emt 0:01:00]} 24. Rf5 {[%emt 0:00:22]} Qxf5 {[%emt 0:00:03]}
25. Nxf5 {[%emt 0:00:01]} Rxf5 {[%emt 0:00:01]} 26. Ra7 {[%emt 0:00:05]} Bf8 {
[%emt 0:00:31]} 27. Qg3 {[%emt 0:01:02]} 1-0

[Event "FIDE World Cup 2013"]
[Site "TromsÃ¸"]
[Date "2013.08.13"]
[Round "1.3"]
[White "Granda Zuniga, Julio E"]
[Black "Melkumyan, Hrant"]
[Result "1/2-1/2"]
[ECO "A45"]
[WhiteElo "2679"]
[BlackElo "2632"]
[PlyCount "95"]
[EventDate "2013.??.??"]
[EventCountry "NOR"]
[TimeControl "1500+10"]

1. d4 {[%emt 0:00:00]} Nf6 {[%emt 0:00:00]} 2. Bf4 {[%emt 0:00:00]} g6 {[%emt
0:00:44]} 3. Nd2 {[%emt 0:00:03]} Bg7 {[%emt 0:01:11]} 4. e4 {[%emt 0:00:08]}
O-O {[%emt 0:00:13]} 5. e5 {[%emt 0:02:26]} Nd5 {[%emt 0:00:08]} 6. Bg3 {[%emt
0:00:03]} d6 {[%emt 0:00:06]} 7. Ngf3 {[%emt 0:00:20]} Nc6 {[%emt 0:00:15]} 8.
Bc4 {[%emt 0:01:14]} dxe5 {[%emt 0:00:31]} 9. dxe5 {[%emt 0:00:03]} Bg4 {[%emt
0:00:20]} 10. h3 {[%emt 0:00:09]} Bxf3 {[%emt 0:00:07]} 11. Nxf3 {[%emt 0:00:
04]} Nb6 {[%emt 0:00:10]} 12. Bb5 {[%emt 0:00:52]} Nb4 {[%emt 0:00:52]} 13. c3
{[%emt 0:00:26]} c6 {[%emt 0:01:51]} 14. Be2 {[%emt 0:00:13]} Qxd1+ {[%emt 0:
00:35]} 15. Rxd1 {[%emt 0:00:02]} N4d5 {[%emt 0:00:06]} 16. c4 {[%emt 0:03:51]}
Nc7 {[%emt 0:00:30]} 17. Kd2 {[%emt 0:03:21]} a5 {[%emt 0:00:26]} 18. Kc2 {
[%emt 0:00:08]} Ne6 {[%emt 0:01:10]} 19. h4 {[%emt 0:00:10]} h6 {[%emt 0:01:22]
} 20. h5 {[%emt 0:00:21]} g5 {[%emt 0:00:01]} 21. Nd4 {[%emt 0:00:07]} Nxd4+ {
[%emt 0:00:57]} 22. Rxd4 {[%emt 0:00:01]} e6 {[%emt 0:01:45]} 23. f4 {[%emt 0:
01:08]} gxf4 {[%emt 0:00:14]} 24. Bxf4 {[%emt 0:00:01]} a4 {[%emt 0:00:38]} 25.
Rhd1 {[%emt 0:00:18]} Ra5 {[%emt 0:00:13]} 26. Re4 {[%emt 0:00:03]} Rc8 {[%emt
0:00:33]} 27. Be3 {[%emt 0:00:23]} Na8 {[%emt 0:01:55]} 28. Rd7 {[%emt 0:01:21]
} Rxe5 {[%emt 0:00:43]} 29. Rxe5 {[%emt 0:00:03]} Bxe5 {[%emt 0:00:01]} 30.
Rxb7 {[%emt 0:00:02]} Kg7 {[%emt 0:00:46]} 31. Bf3 {[%emt 0:00:21]} c5 {[%emt
0:01:23]} 32. Rb5 {[%emt 0:00:55]} Bd6 {[%emt 0:01:11]} 33. a3 {[%emt 0:01:04]}
f5 {[%emt 0:02:35]} 34. g4 {[%emt 0:00:24]} f4 {[%emt 0:00:34]} 35. Bf2 {[%emt
0:00:08]} Kf6 {[%emt 0:00:25]} 36. Bh4+ {[%emt 0:00:22]} Ke5 {[%emt 0:00:16]}
37. Rb7 {[%emt 0:00:57]} Nc7 {[%emt 0:02:09]} 38. Kd3 {[%emt 0:00:40]} Ne8 {
[%emt 0:01:25]} 39. Rf7 {[%emt 0:00:43]} Bc7 {[%emt 0:00:34]} 40. Be1 {[%emt 0:
00:31]} Rd8+ {[%emt 0:00:17]} 41. Ke2 {[%emt 0:00:09]} Kd4 {[%emt 0:00:52]} 42.
Bc6 {[%emt 0:02:33]} Bd6 {[%emt 0:01:32]} 43. Bxe8 {[%emt 0:00:11]} Rxe8 {
[%emt 0:00:05]} 44. Rd7 {[%emt 0:00:02]} Rg8 {[%emt 0:00:24]} 45. Rxd6+ {[%emt
0:00:26]} Ke5 {[%emt 0:00:01]} 46. Rc6 {[%emt 0:00:05]} Rxg4 {[%emt 0:00:04]}
47. Kf3 {[%emt 0:00:11]} Rg8 {[%emt 0:00:17]} 48. Bc3+ {[%emt 0:00:04]} 1/2-1/2

[Event "FIDE World Cup 2013"]
[Site "TromsÃ¸"]
[Date "2013.08.13"]
[Round "1.3"]
[White "Hammer, Jon Ludvig"]
[Black "Movsesian, Sergei"]
[Result "1-0"]
[ECO "E21"]
[WhiteElo "2599"]
[BlackElo "2699"]
[PlyCount "57"]
[EventDate "2013.??.??"]
[EventCountry "NOR"]
[TimeControl "1500+10"]

1. d4 {[%emt 0:00:00]} Nf6 {[%emt 0:00:00]} 2. c4 {[%emt 0:00:00]} e6 {[%emt 0:
00:00]} 3. Nc3 {[%emt 0:00:00]} Bb4 {[%emt 0:00:00]} 4. Nf3 {[%emt 0:00:00]} b6
{[%emt 0:00:26]} 5. e3 {[%emt 0:00:00]} Bb7 {[%emt 0:00:03]} 6. Bd3 {[%emt 0:
00:00]} O-O {[%emt 0:00:09]} 7. O-O {[%emt 0:00:00]} d5 {[%emt 0:00:04]} 8.
cxd5 {[%emt 0:00:25]} exd5 {[%emt 0:00:01]} 9. a3 {[%emt 0:00:01]} Bd6 {[%emt
0:00:08]} 10. b4 {[%emt 0:00:05]} Nbd7 {[%emt 0:00:06]} 11. Rb1 {[%emt 0:01:20]
} c6 {[%emt 0:02:18]} 12. e4 {[%emt 0:00:22]} dxe4 {[%emt 0:00:06]} 13. Nxe4 {
[%emt 0:00:03]} Nxe4 {[%emt 0:00:35]} 14. Bxe4 {[%emt 0:00:02]} h6 {[%emt 0:00:
35]} 15. b5 {[%emt 0:03:48]} Qc7 {[%emt 0:00:55]} 16. Bxh6 {[%emt 0:09:07]}
cxb5 {[%emt 0:02:25]} 17. Bxb7 {[%emt 0:03:43]} Qxb7 {[%emt 0:00:01]} 18. Rxb5
{[%emt 0:00:02]} gxh6 {[%emt 0:01:30]} 19. Qc1 {[%emt 0:00:00]} Qe4 {[%emt 0:
01:41]} 20. Qxh6 {[%emt 0:00:08]} Bf4 {[%emt 0:00:07]} 21. Qh4 {[%emt 0:00:20]}
f5 {[%emt 0:01:58]} 22. Re1 {[%emt 0:00:52]} Bxh2+ {[%emt 0:02:58]} 23. Qxh2 {
[%emt 0:00:14]} Qg4 {[%emt 0:00:01]} 24. Re7 {[%emt 0:02:13]} Nf6 {[%emt 0:00:
02]} 25. Qh6 {[%emt 0:00:17]} Rae8 {[%emt 0:01:46]} 26. Rxa7 {[%emt 0:00:05]}
Rf7 {[%emt 0:00:15]} 27. Rxf7 {[%emt 0:00:03]} Kxf7 {[%emt 0:00:02]} 28. Ng5+ {
[%emt 0:00:10]} Kg8 {[%emt 0:00:32]} 29. Qg6+ {[%emt 0:00:02]} 1-0

[Event "FIDE World Cup 2013"]
[Site "TromsÃ¸"]
[Date "2013.08.13"]
[Round "1.3"]
[White "Hou, Yifan"]
[Black "Shirov, Alexei"]
[Result "1-0"]
[ECO "B35"]
[WhiteElo "2600"]
[BlackElo "2696"]
[PlyCount "87"]
[EventDate "2013.??.??"]
[EventCountry "NOR"]
[TimeControl "1500+10"]

1. e4 {[%emt 0:00:00]} c5 {[%emt 0:00:00]} 2. Nc3 {[%emt 0:00:00]} Nc6 {[%emt
0:00:04]} 3. Nge2 {[%emt 0:00:00]} g6 {[%emt 0:00:54]} 4. d4 {[%emt 0:00:07]}
cxd4 {[%emt 0:00:03]} 5. Nxd4 {[%emt 0:00:02]} Bg7 {[%emt 0:00:03]} 6. Be3 {
[%emt 0:00:02]} Nf6 {[%emt 0:00:17]} 7. Bc4 {[%emt 0:00:03]} O-O {[%emt 0:00:
04]} 8. Bb3 {[%emt 0:00:02]} d6 {[%emt 0:00:02]} 9. f3 {[%emt 0:00:17]} Bd7 {
[%emt 0:00:02]} 10. Qd2 {[%emt 0:00:02]} Nxd4 {[%emt 0:00:11]} 11. Bxd4 {[%emt
0:00:02]} b5 {[%emt 0:00:02]} 12. a4 {[%emt 0:01:38]} bxa4 {[%emt 0:00:02]} 13.
Bxa4 {[%emt 0:01:06]} a5 {[%emt 0:00:02]} 14. O-O {[%emt 0:01:35]} Qc7 {[%emt
0:00:03]} 15. Rfd1 {[%emt 0:01:32]} Rfb8 {[%emt 0:02:09]} 16. Bxd7 {[%emt 0:02:
28]} Qxd7 {[%emt 0:06:36]} 17. b3 {[%emt 0:00:02]} Rb4 {[%emt 0:01:10]} 18. Ne2
{[%emt 0:00:10]} Qb7 {[%emt 0:00:15]} 19. Kh1 {[%emt 0:02:58]} Nd7 {[%emt 0:01:
56]} 20. Bxg7 {[%emt 0:02:04]} Kxg7 {[%emt 0:00:02]} 21. Nf4 {[%emt 0:00:02]}
Nf6 {[%emt 0:00:41]} 22. Nd3 {[%emt 0:00:39]} Rb5 {[%emt 0:00:04]} 23. Ra4 {
[%emt 0:00:00]} Rc8 {[%emt 0:01:01]} 24. Rda1 {[%emt 0:00:44]} Qc7 {[%emt 0:00:
09]} 25. Ne1 {[%emt 0:04:05]} d5 {[%emt 0:00:13]} 26. Rxa5 {[%emt 0:00:02]}
Rxa5 {[%emt 0:00:04]} 27. Qxa5 {[%emt 0:00:03]} dxe4 {[%emt 0:01:04]} 28. Qxc7
{[%emt 0:00:01]} Rxc7 {[%emt 0:00:01]} 29. Kg1 {[%emt 0:00:01]} exf3 {[%emt 0:
04:03]} 30. gxf3 {[%emt 0:00:02]} Nd5 {[%emt 0:01:52]} 31. c4 {[%emt 0:01:27]}
Nb4 {[%emt 0:00:08]} 32. Kf2 {[%emt 0:00:05]} e5 {[%emt 0:01:20]} 33. Ke3 {
[%emt 0:00:19]} Kf6 {[%emt 0:01:35]} 34. Ra4 {[%emt 0:00:33]} Rb7 {[%emt 0:00:
42]} 35. Kd2 {[%emt 0:00:12]} Kf5 {[%emt 0:00:58]} 36. Kc3 {[%emt 0:00:18]} Nc6
{[%emt 0:00:02]} 37. b4 {[%emt 0:00:13]} e4 {[%emt 0:02:05]} 38. fxe4+ {[%emt
0:01:03]} Kxe4 {[%emt 0:00:02]} 39. Nd3 {[%emt 0:00:01]} Ke3 {[%emt 0:00:22]}
40. Ra8 {[%emt 0:02:06]} Re7 {[%emt 0:00:26]} 41. b5 {[%emt 0:00:27]} Nd4 {
[%emt 0:00:01]} 42. Nc5 {[%emt 0:00:33]} Re5 {[%emt 0:00:17]} 43. Rc8 {[%emt 0:
00:16]} Nf5 {[%emt 0:00:25]} 44. b6 {[%emt 0:00:32]} 1-0

[Event "FIDE World Cup 2013"]
[Site "TromsÃ¸"]
[Date "2013.08.13"]
[Round "1.3"]
[White "Jobava, Baadur"]
[Black "Kravtsiv, Martyn"]
[Result "1-0"]
[ECO "E53"]
[WhiteElo "2693"]
[BlackElo "2620"]
[PlyCount "93"]
[EventDate "2013.??.??"]
[EventCountry "NOR"]
[TimeControl "1500+10"]

1. d4 {[%emt 0:00:00]} Nf6 {[%emt 0:00:00]} 2. c4 {[%emt 0:00:00]} e6 {[%emt 0:
00:00]} 3. Nc3 {[%emt 0:00:00]} Bb4 {[%emt 0:00:52]} 4. e3 {[%emt 0:00:00]} O-O
{[%emt 0:00:11]} 5. Bd3 {[%emt 0:00:00]} d5 {[%emt 0:00:19]} 6. Nf3 {[%emt 0:
00:01]} c5 {[%emt 0:00:30]} 7. O-O {[%emt 0:00:03]} cxd4 {[%emt 0:00:38]} 8.
exd4 {[%emt 0:00:01]} dxc4 {[%emt 0:00:02]} 9. Bxc4 {[%emt 0:00:02]} b6 {[%emt
0:00:04]} 10. Bg5 {[%emt 0:08:31]} Bb7 {[%emt 0:00:29]} 11. Rc1 {[%emt 0:02:01]
} Nbd7 {[%emt 0:01:10]} 12. Qe2 {[%emt 0:01:10]} Rc8 {[%emt 0:02:58]} 13. Rfd1
{[%emt 0:00:03]} Bxf3 {[%emt 0:05:29]} 14. gxf3 {[%emt 0:00:01]} Bxc3 {[%emt 0:
00:05]} 15. Rxc3 {[%emt 0:00:34]} Re8 {[%emt 0:00:06]} 16. Ra3 {[%emt 0:02:36]}
Qc7 {[%emt 0:02:49]} 17. Ba6 {[%emt 0:00:13]} Qc2 {[%emt 0:00:49]} 18. Kf1 {
[%emt 0:03:46]} Qxe2+ {[%emt 0:01:10]} 19. Kxe2 {[%emt 0:00:03]} Rc7 {[%emt 0:
02:03]} 20. Bf4 {[%emt 0:00:06]} Rc2+ {[%emt 0:00:55]} 21. Rd2 {[%emt 0:00:01]}
Rxd2+ {[%emt 0:00:01]} 22. Bxd2 {[%emt 0:00:32]} h6 {[%emt 0:01:03]} 23. Bb5 {
[%emt 0:02:09]} a5 {[%emt 0:00:05]} 24. Rc3 {[%emt 0:00:33]} e5 {[%emt 0:01:15]
} 25. Re3 {[%emt 0:01:00]} Re7 {[%emt 0:00:04]} 26. Bc6 {[%emt 0:00:39]} Re6 {
[%emt 0:00:37]} 27. Bxd7 {[%emt 0:02:51]} Nxd7 28. dxe5 Nxe5 {[%emt 0:02:10]}
29. Bc3 {[%emt 0:00:02]} Nd7 {[%emt 0:02:57]} 30. Rxe6 {[%emt 0:00:02]} fxe6 {
[%emt 0:00:01]} 31. Kd3 {[%emt 0:00:07]} g5 {[%emt 0:00:07]} 32. Kc4 {[%emt 0:
00:02]} Kf7 {[%emt 0:00:01]} 33. Kb5 {[%emt 0:00:02]} e5 {[%emt 0:00:01]} 34.
Bd2 {[%emt 0:00:51]} Ke6 {[%emt 0:01:02]} 35. Be3 {[%emt 0:00:04]} Kf5 {[%emt
0:00:05]} 36. a4 {[%emt 0:00:25]} h5 {[%emt 0:00:15]} 37. Kc6 {[%emt 0:00:17]}
Nc5 {[%emt 0:00:04]} 38. Bxc5 {[%emt 0:00:49]} bxc5 {[%emt 0:00:02]} 39. Kxc5 {
[%emt 0:00:01]} Kf4 {[%emt 0:00:34]} 40. b4 {[%emt 0:00:02]} axb4 {[%emt 0:00:
08]} 41. Kxb4 {[%emt 0:00:01]} Kxf3 {[%emt 0:00:08]} 42. a5 {[%emt 0:00:01]}
Kxf2 {[%emt 0:00:02]} 43. a6 {[%emt 0:00:01]} Kg2 {[%emt 0:00:35]} 44. a7 {
[%emt 0:00:02]} Kxh2 {[%emt 0:00:03]} 45. a8=Q {[%emt 0:00:02]} g4 {[%emt 0:00:
01]} 46. Qh8 {[%emt 0:00:06]} g3 {[%emt 0:00:22]} 47. Qxh5+ {[%emt 0:00:02]}
1-0

[Event "FIDE World Cup 2013"]
[Site "TromsÃ¸"]
[Date "2013.08.13"]
[Round "1.3"]
[White "Kobalia, Mikhail"]
[Black "Khismatullin, Denis"]
[Result "1-0"]
[ECO "C67"]
[WhiteElo "2651"]
[BlackElo "2658"]
[PlyCount "79"]
[EventDate "2013.??.??"]
[EventCountry "NOR"]
[TimeControl "1500+10"]

1. e4 {[%emt 0:00:00]} e5 {[%emt 0:00:00]} 2. Nf3 {[%emt 0:00:00]} Nc6 {[%emt
0:00:00]} 3. Bb5 {[%emt 0:00:02]} Nf6 {[%emt 0:00:00]} 4. O-O {[%emt 0:01:44]}
Nxe4 {[%emt 0:00:10]} 5. Re1 {[%emt 0:00:04]} Nd6 {[%emt 0:00:03]} 6. Bf1 {
[%emt 0:00:06]} Be7 {[%emt 0:00:27]} 7. Nxe5 {[%emt 0:00:03]} Nxe5 {[%emt 0:01:
04]} 8. Rxe5 {[%emt 0:00:02]} O-O {[%emt 0:00:03]} 9. Nc3 {[%emt 0:00:27]} Bf6
{[%emt 0:05:40]} 10. Re1 {[%emt 0:00:04]} Ne8 {[%emt 0:00:02]} 11. Nd5 {[%emt
0:00:36]} Bg5 {[%emt 0:00:02]} 12. d4 {[%emt 0:02:22]} Bxc1 {[%emt 0:00:51]}
13. Rxc1 {[%emt 0:00:22]} Nf6 {[%emt 0:00:12]} 14. Qf3 {[%emt 0:01:05]} Nxd5 {
[%emt 0:01:03]} 15. Qxd5 {[%emt 0:00:02]} d6 {[%emt 0:00:10]} 16. Re3 {[%emt 0:
00:24]} c6 {[%emt 0:01:01]} 17. Qb3 {[%emt 0:00:35]} Qf6 {[%emt 0:02:58]} 18.
c3 {[%emt 0:01:42]} d5 {[%emt 0:03:01]} 19. Rce1 {[%emt 0:00:15]} b6 {[%emt 0:
01:44]} 20. Qb4 {[%emt 0:04:49]} Bf5 {[%emt 0:03:46]} 21. Qe7 {[%emt 0:06:03]}
Qg6 {[%emt 0:00:23]} 22. Rg3 {[%emt 0:00:19]} Qh6 {[%emt 0:00:21]} 23. Bd3 {
[%emt 0:00:24]} Bxd3 {[%emt 0:02:07]} 24. Rxd3 {[%emt 0:00:02]} a5 {[%emt 0:00:
12]} 25. Rde3 {[%emt 0:00:17]} Qg6 {[%emt 0:00:32]} 26. h4 {[%emt 0:00:41]} h6
{[%emt 0:00:09]} 27. Rg3 {[%emt 0:00:06]} Qf5 {[%emt 0:00:31]} 28. Qd6 {[%emt
0:02:11]} Rae8 {[%emt 0:00:41]} 29. Rxe8 {[%emt 0:00:07]} Rxe8 {[%emt 0:00:04]}
30. Qxh6 {[%emt 0:00:01]} Re1+ {[%emt 0:01:00]} 31. Kh2 {[%emt 0:00:02]} g6 {
[%emt 0:00:18]} 32. Rf3 {[%emt 0:01:53]} Qe6 {[%emt 0:00:59]} 33. h5 {[%emt 0:
00:22]} Qd6+ {[%emt 0:00:14]} 34. Rg3 {[%emt 0:00:13]} Re6 {[%emt 0:00:22]} 35.
f4 {[%emt 0:00:22]} Rf6 {[%emt 0:00:18]} 36. hxg6 {[%emt 0:00:12]} fxg6 {[%emt
0:00:12]} 37. f5 {[%emt 0:00:22]} Kf7 {[%emt 0:00:13]} 38. fxg6+ {[%emt 0:00:
13]} Ke6 {[%emt 0:00:02]} 39. Qh3+ {[%emt 0:00:21]} Ke7 {[%emt 0:00:09]} 40. g7
{[%emt 0:00:03]} 1-0

[Event "FIDE World Cup 2013"]
[Site "TromsÃ¸"]
[Date "2013.08.13"]
[Round "1.3"]
[White "Korobov, Anton"]
[Black "Durarbayli, Vasif"]
[Result "1-0"]
[ECO "E21"]
[WhiteElo "2720"]
[BlackElo "2549"]
[PlyCount "61"]
[EventDate "2013.??.??"]
[EventCountry "NOR"]
[TimeControl "1500+10"]

1. d4 {[%emt 0:00:00]} Nf6 {[%emt 0:00:00]} 2. c4 {[%emt 0:00:00]} e6 {[%emt 0:
00:00]} 3. Nf3 {[%emt 0:00:00]} b6 {[%emt 0:00:00]} 4. Nc3 {[%emt 0:00:00]} Bb4
{[%emt 0:00:05]} 5. e3 {[%emt 0:00:00]} Bb7 {[%emt 0:02:20]} 6. Bd3 {[%emt 0:
00:04]} O-O {[%emt 0:00:55]} 7. O-O {[%emt 0:00:04]} Bxc3 {[%emt 0:02:09]} 8.
bxc3 {[%emt 0:00:02]} Ne4 {[%emt 0:00:01]} 9. Ne1 {[%emt 0:00:05]} f5 {[%emt 0:
02:05]} 10. f3 {[%emt 0:00:02]} Nf6 {[%emt 0:00:00]} 11. Nc2 {[%emt 0:00:05]}
Qe8 {[%emt 0:01:27]} 12. a4 {[%emt 0:01:49]} Nc6 {[%emt 0:00:48]} 13. Rb1 {
[%emt 0:01:50]} d6 {[%emt 0:00:28]} 14. Qe2 {[%emt 0:01:33]} Qh5 {[%emt 0:02:
33]} 15. c5 {[%emt 0:03:18]} dxc5 {[%emt 0:00:44]} 16. dxc5 {[%emt 0:00:02]}
Ne5 {[%emt 0:01:09]} 17. Nd4 {[%emt 0:00:27]} Nxd3 {[%emt 0:03:43]} 18. Qxd3 {
[%emt 0:00:25]} Rad8 {[%emt 0:04:08]} 19. Qe2 {[%emt 0:00:17]} Rfe8 {[%emt 0:
01:14]} 20. c6 {[%emt 0:01:33]} Bc8 {[%emt 0:00:12]} 21. Nb5 {[%emt 0:00:27]}
Ba6 {[%emt 0:01:45]} 22. c4 {[%emt 0:00:03]} Qf7 {[%emt 0:01:04]} 23. Bb2 {
[%emt 0:01:00]} e5 {[%emt 0:00:00]} 24. Rbd1 {[%emt 0:00:01]} Ra8 {[%emt 0:00:
20]} 25. f4 {[%emt 0:00:56]} exf4 {[%emt 0:00:23]} 26. Rxf4 {[%emt 0:00:03]}
Bxb5 {[%emt 0:00:18]} 27. axb5 {[%emt 0:00:14]} Nh5 {[%emt 0:00:29]} 28. Rff1 {
[%emt 0:00:53]} a6 {[%emt 0:00:13]} 29. Rd7 {[%emt 0:00:56]} Qg6 {[%emt 0:00:
01]} 30. Rxc7 {[%emt 0:00:16]} f4 {[%emt 0:00:01]} 31. Qxh5 {[%emt 0:00:14]}
1-0

[Event "FIDE World Cup 2013"]
[Site "TromsÃ¸"]
[Date "2013.08.13"]
[Round "1.3"]
[White "Kryvoruchko, Yuriy"]
[Black "Negi, Parimarjan"]
[Result "0-1"]
[ECO "C54"]
[WhiteElo "2678"]
[BlackElo "2634"]
[PlyCount "76"]
[EventDate "2013.??.??"]
[EventCountry "NOR"]
[TimeControl "1500+10"]

1. e4 {[%emt 0:00:00]} e5 {[%emt 0:00:00]} 2. Nf3 {[%emt 0:00:00]} Nc6 {[%emt
0:00:00]} 3. Bc4 {[%emt 0:00:00]} Bc5 {[%emt 0:00:23]} 4. c3 {[%emt 0:00:01]}
Nf6 {[%emt 0:00:02]} 5. d4 {[%emt 0:00:03]} exd4 {[%emt 0:00:40]} 6. e5 {[%emt
0:00:13]} d5 {[%emt 0:01:19]} 7. Bb5 {[%emt 0:00:03]} Ne4 {[%emt 0:00:48]} 8.
cxd4 {[%emt 0:00:02]} Bb4+ {[%emt 0:00:19]} 9. Bd2 {[%emt 0:00:03]} Nxd2 {
[%emt 0:00:12]} 10. Nbxd2 {[%emt 0:00:03]} O-O {[%emt 0:00:22]} 11. O-O {[%emt
0:00:05]} Ne7 {[%emt 0:03:24]} 12. a3 {[%emt 0:01:59]} Ba5 {[%emt 0:00:41]} 13.
Bd3 {[%emt 0:01:10]} Bf5 {[%emt 0:00:40]} 14. Bxf5 {[%emt 0:03:20]} Nxf5 {
[%emt 0:00:02]} 15. b4 {[%emt 0:00:02]} Bb6 {[%emt 0:00:03]} 16. Nb3 {[%emt 0:
00:01]} f6 {[%emt 0:01:00]} 17. Nc5 {[%emt 0:00:54]} Bxc5 {[%emt 0:04:20]} 18.
bxc5 {[%emt 0:00:02]} c6 {[%emt 0:00:22]} 19. Qd3 {[%emt 0:01:20]} g6 {[%emt 0:
03:27]} 20. exf6 {[%emt 0:00:57]} Qxf6 {[%emt 0:02:57]} 21. Ne5 {[%emt 0:00:03]
} Rfe8 {[%emt 0:00:14]} 22. f4 {[%emt 0:00:05]} b6 {[%emt 0:01:06]} 23. Rac1 {
[%emt 0:00:58]} Rac8 {[%emt 0:00:01]} 24. g3 {[%emt 0:03:06]} Rc7 {[%emt 0:02:
01]} 25. a4 {[%emt 0:01:09]} Rec8 {[%emt 0:00:31]} 26. Rfe1 {[%emt 0:02:31]}
Kg7 {[%emt 0:00:57]} 27. Rc2 {[%emt 0:00:36]} bxc5 {[%emt 0:00:08]} 28. Rxc5 {
[%emt 0:00:02]} Nd6 {[%emt 0:00:05]} 29. Rc2 {[%emt 0:01:17]} Ne4 {[%emt 0:00:
14]} 30. Rec1 {[%emt 0:00:17]} Qd6 {[%emt 0:00:42]} 31. Qa6 {[%emt 0:02:16]}
Qa3 {[%emt 0:00:02]} 32. Kg2 {[%emt 0:00:27]} Rb8 {[%emt 0:01:13]} 33. Qa5 {
[%emt 0:01:23]} Rb6 {[%emt 0:00:45]} 34. Nxc6 {[%emt 0:01:35]} Rbxc6 {[%emt 0:
00:24]} 35. Rxc6 Rxc6 36. Rxc6 {[%emt 0:00:14]} Qb2+ {[%emt 0:00:03]} 37. Kh3 {
[%emt 0:00:36]} Nf2+ {[%emt 0:00:03]} 38. Kh4 {[%emt 0:00:06]} Qe2 {[%emt 0:00:
34]} 0-1

[Event "FIDE World Cup 2013"]
[Site "TromsÃ¸"]
[Date "2013.08.13"]
[Round "1.3"]
[White "Lou, Yiping"]
[Black "Kamsky, Gata"]
[Result "1/2-1/2"]
[ECO "C05"]
[WhiteElo "2483"]
[BlackElo "2763"]
[PlyCount "134"]
[EventDate "2013.??.??"]
[EventCountry "NOR"]
[TimeControl "1500+10"]

1. d4 {[%emt 0:00:00]} e6 {[%emt 0:00:00]} 2. e4 {[%emt 0:00:31]} d5 {[%emt 0:
00:55]} 3. Nd2 {[%emt 0:00:05]} Nf6 {[%emt 0:00:45]} 4. e5 {[%emt 0:00:05]}
Nfd7 {[%emt 0:00:02]} 5. c3 {[%emt 0:00:24]} c5 {[%emt 0:00:02]} 6. Bd3 {[%emt
0:01:22]} Nc6 {[%emt 0:01:25]} 7. Ngf3 {[%emt 0:00:24]} a6 {[%emt 0:00:41]} 8.
O-O {[%emt 0:00:11]} b5 {[%emt 0:00:04]} 9. Re1 {[%emt 0:01:51]} Qb6 {[%emt 0:
01:03]} 10. a4 {[%emt 0:01:27]} Bb7 {[%emt 0:01:24]} 11. Ng5 {[%emt 0:00:23]}
Be7 {[%emt 0:00:17]} 12. axb5 {[%emt 0:01:45]} axb5 {[%emt 0:00:19]} 13. Rxa8+
{[%emt 0:00:03]} Bxa8 {[%emt 0:00:01]} 14. Qg4 {[%emt 0:01:38]} cxd4 {[%emt 0:
03:26]} 15. Ndf3 {[%emt 0:03:57]} dxc3 {[%emt 0:01:25]} 16. Nxh7 {[%emt 0:01:
11]} g6 {[%emt 0:01:34]} 17. Nf6+ {[%emt 0:00:53]} Kd8 {[%emt 0:07:22]} 18.
Nxd7 {[%emt 0:01:13]} Kxd7 {[%emt 0:00:01]} 19. bxc3 {[%emt 0:00:02]} b4 {
[%emt 0:01:18]} 20. Be3 {[%emt 0:01:00]} Qa5 {[%emt 0:01:06]} 21. c4 {[%emt 0:
01:35]} dxc4 {[%emt 0:00:50]} 22. Qxc4 {[%emt 0:01:02]} Rc8 {[%emt 0:01:11]}
23. Rd1 {[%emt 0:01:01]} Ke8 {[%emt 0:00:22]} 24. Bxg6 {[%emt 0:00:24]} Rd8 {
[%emt 0:00:21]} 25. Rxd8+ {[%emt 0:03:35]} Nxd8 {[%emt 0:00:01]} 26. Bc2 {
[%emt 0:00:08]} Bd5 {[%emt 0:00:26]} 27. Qd3 {[%emt 0:00:32]} b3 {[%emt 0:00:
05]} 28. Bb1 {[%emt 0:00:20]} Nc6 {[%emt 0:00:10]} 29. h4 {[%emt 0:00:36]} Bxf3
{[%emt 0:00:43]} 30. gxf3 {[%emt 0:00:02]} Nxe5 {[%emt 0:00:05]} 31. Qxb3 {
[%emt 0:00:52]} Nxf3+ {[%emt 0:00:02]} 32. Kg2 {[%emt 0:00:07]} Nxh4+ {[%emt 0:
00:09]} 33. Kf1 {[%emt 0:00:01]} Qa8 {[%emt 0:00:19]} 34. Qb5+ {[%emt 0:00:34]}
Kf8 {[%emt 0:00:02]} 35. Qh5 {[%emt 0:00:12]} Qa1 {[%emt 0:01:00]} 36. Qb5 {
[%emt 0:00:46]} Nf5 {[%emt 0:00:22]} 37. Ke2 {[%emt 0:00:22]} Nd4+ {[%emt 0:00:
31]} 38. Bxd4 {[%emt 0:00:03]} Qxd4 {[%emt 0:00:01]} 39. Qd3 {[%emt 0:00:11]}
Qb6 {[%emt 0:00:21]} 40. Qe4 {[%emt 0:00:36]} Bc5 {[%emt 0:00:13]} 41. f3 {
[%emt 0:00:08]} Qb2+ {[%emt 0:00:11]} 42. Bc2 {[%emt 0:00:08]} Qc3 {[%emt 0:00:
33]} 43. Qa8+ {[%emt 0:00:14]} Kg7 {[%emt 0:00:04]} 44. Qe4 {[%emt 0:00:01]}
Bb6 {[%emt 0:00:26]} 45. Qg4+ {[%emt 0:00:18]} Kf8 {[%emt 0:00:02]} 46. Qe4 {
[%emt 0:00:02]} Qc5 {[%emt 0:00:02]} 47. f4 {[%emt 0:00:18]} Qf2+ {[%emt 0:00:
03]} 48. Kd3 {[%emt 0:00:02]} Bc7 {[%emt 0:00:47]} 49. f5 {[%emt 0:00:13]} exf5
{[%emt 0:00:07]} 50. Qc6 {[%emt 0:00:08]} Qf1+ {[%emt 0:00:18]} 51. Kc3 {[%emt
0:00:03]} Be5+ {[%emt 0:00:01]} 52. Kb3 {[%emt 0:00:02]} Kg7 {[%emt 0:00:07]}
53. Qc4 {[%emt 0:00:07]} Qf2 {[%emt 0:00:13]} 54. Qd5 {[%emt 0:00:16]} Qb6+ {
[%emt 0:00:08]} 55. Kc4 {[%emt 0:00:04]} Qa6+ {[%emt 0:00:19]} 56. Kb3 {[%emt
0:00:07]} Qb6+ {[%emt 0:00:14]} 57. Kc4 {[%emt 0:00:02]} Kf6 {[%emt 0:00:04]}
58. Ba4 {[%emt 0:00:17]} Qa6+ {[%emt 0:00:09]} 59. Kb3 {[%emt 0:00:01]} Qb6+ {
[%emt 0:00:16]} 60. Kc4 {[%emt 0:00:02]} Qe3 {[%emt 0:00:03]} 61. Qc6+ {[%emt
0:00:12]} Kg5 {[%emt 0:00:03]} 62. Qg2+ {[%emt 0:00:10]} Bg3 {[%emt 0:00:03]}
63. Bc6 {[%emt 0:00:09]} Qf4+ {[%emt 0:00:38]} 64. Kd3 {[%emt 0:00:04]} Qe5 {
[%emt 0:00:10]} 65. Bd5 {[%emt 0:00:08]} f6 {[%emt 0:00:05]} 66. Qf3 {[%emt 0:
00:04]} f4 {[%emt 0:00:09]} 67. Qe4 {[%emt 0:00:14]} Qxe4+ {[%emt 0:00:17]}
1/2-1/2